fUSD/lending_fUSD_20250324
["ID","MTS","AMOUNT","RATE_DAILY","PERIOD"]
[356618714,1742843431877,-1730.22800544,0.000194,2]
[356618715,1742843431893,-169.75951692,0.000194,2]
[356618717,1742843431902,-500.90196486,0.00019473,2]
[356618719,1742843431912,-155.3347734,0.00019473,2]
[356618721,1742843431925,-220.18,0.0001949,3]
[356618723,1742843431940,-1290.7171548,0.00019494,2]
[356618725,1742843431954,-876.2331996,0.00019494,2]
[356618727,1742843431964,-693.0,0.000195,2]
[356618729,1742843431973,-61063.6706167,0.000195,2]
[356618731,1742843431985,-320.29041264,0.000195,2]
[356618732,1742843432002,-542.16718762,0.000195,2]
[356618733,1742843432013,-44298.5,0.000195,2]
[356618734,1742843432025,-809.87798182,0.000195,2]
[356618735,1742843432038,-558.13920532,0.000195,2]
[356618736,1742843432049,-1498.37856869,0.000195,2]
[356618737,1742843432060,-1324.60637856,0.000195,2]
[356618738,1742843432071,-4407.26800177,0.000195,2]
[356618739,1742843432090,-327.29223242,0.000195,2]
[356618740,1742843437276,-428.7000009,0.000195,2]
[356618741,1742843437590,-413.35807207,0.000195,2]
[356618745,1742843439728,-493.80144382,0.000195,2]
[356618746,1742843439741,-495.02,0.000195,2]
[356618747,1742843439834,-1369.93996337,0.000195,2]
[356618748,1742843439846,-1054.42799998,0.000195,2]
[356618767,1742843443857,-22082.17455268,0.000195,2]
[356618769,1742843445501,-524.94823388,0.000195,2]
[356618770,1742843445556,-21537.99323645,0.000195,2]
[356618771,1742843445574,-5556.40749307,0.000195,2]
[356618772,1742843445670,-719.933493,0.000195,2]
[356618773,1742843445695,-531.95670278,0.000195,2]
[356618880,1742844346329,1000.0,0.00031699,30]
[356618881,1742844478053,61862.11494892,0.0001,2]
[356618897,1742844631697,-250.0,0.00011,2]
[356618898,1742844631707,-170.66610127,0.00011999,2]
[356618899,1742844631717,-74.11062223,0.00011999,2]
[356618900,1742844631741,-171.02961128,0.00011999,2]
[356618901,1742844631750,-74661.28508253,0.00012,2]
[356618902,1742844631761,-20609.96704931,0.00012,2]
[356618941,1742844637598,-481.12341065,0.00012,2]
[356618942,1742844637758,-296.32204755,0.00012,2]
[356618955,1742844639718,-284.85,0.00012,2]
[356618956,1742844639885,-4364.87360049,0.00012,2]
[356618957,1742844639897,-1872.75639217,0.00012,2]
[356618958,1742844639909,-5239.75000001,0.00012,2]
[356618959,1742844639921,-1572.28849998,0.00012,2]
[356618980,1742844642737,-7360.84164363,0.00012,2]
[356618983,1742844644061,-17702.02775222,0.00012,2]
[356618984,1742844644072,-66657.64910273,0.00012,2]
[356618985,1742844644083,-25186.3396482,0.00012,2]
[356619019,1742844924029,536.12,0.00031698,120]
[356619020,1742845128311,-42341.44571286,0.000209,30]
[356619021,1742845128343,-157.75,0.00024712,30]
[356619022,1742845128373,-470.17724483,0.00026,120]
[356619023,1742845128403,-159.85564824,0.0003,30]
[356619024,1742845128430,-3305.11702899,0.0003,120]
[356619025,1742845128456,-10000.0,0.0003,30]
[356619026,1742845128484,-150.0,0.00030454,30]
[356619027,1742845128511,-427.83594778,0.00030454,30]
[356619028,1742845128536,-159.92721646,0.00030454,30]
[356619029,1742845128562,-227.78236622,0.00030454,30]
[356619030,1742845128588,-244.43,0.00031,30]
[356619031,1742845128613,-588.0,0.00031,30]
[356619032,1742845128639,-9845.07485504,0.00031323,30]
[356619033,1742845128672,-27394.35935212,0.00031698,30]
[356619034,1742845128703,-8000.0,0.000317,114]
[356619035,1742845128730,-10000.0,0.000317,114]
[356619036,1742845128756,-10000.0,0.000317,114]
[356619037,1742845128782,-10000.0,0.000317,114]
[356619038,1742845128807,-10000.0,0.000317,114]
[356619039,1742845128832,-10000.0,0.000317,114]
[356619040,1742845128858,-10000.0,0.000317,114]
[356619041,1742845128883,-10000.0,0.000317,114]
[356619042,1742845128910,-10000.0,0.000317,114]
[356619043,1742845128936,-10000.0,0.000317,114]
[356619044,1742845128968,-10000.0,0.000317,114]
[356619045,1742845128993,-10000.0,0.000317,114]
[356619046,1742845129020,-10000.0,0.000317,114]
[356619047,1742845129196,-49860.63535001,0.00032888,120]
[356619048,1742845129222,-157.75,0.00032922,120]
[356619049,1742845129247,-2088.43646,0.000333,120]
[356619050,1742845129272,-540.816022,0.000333,120]
[356619051,1742845129300,-174.91,0.000335,31]
[356619052,1742845129331,-174.91,0.000335,31]
[356619053,1742845129359,-174.91,0.000335,31]
[356619054,1742845129387,-174.91,0.000335,31]
[356619055,1742845129416,-174.91,0.000335,31]
[356619056,1742845129443,-174.91,0.000335,31]
[356619057,1742845129469,-174.91,0.000335,31]
[356619058,1742845129499,-174.91,0.000335,31]
[356619059,1742845129526,-174.91,0.000335,31]
[356619060,1742845129553,-174.91,0.000335,31]
[356619061,1742845129580,-174.91,0.000335,31]
[356619062,1742845129607,-174.91,0.000335,31]
[356619063,1742845129633,-476.60516,0.00034698,30]
[356619064,1742845129657,-1300.0,0.00034962,60]
[356619065,1742845129683,-457.62979425,0.00035,114]
[356619066,1742845129707,-10000.0,0.00035,114]
[356619067,1742845129732,-10000.0,0.00035,114]
[356619068,1742845129756,-10000.0,0.00035,114]
[356619069,1742845129781,-10000.0,0.00035,114]
[356619070,1742845129805,-10000.0,0.00035,114]
[356619071,1742845129830,-1300.0,0.0003551,60]
[356619072,1742845129859,-174.91,0.00036,31]
[356619073,1742845129886,-174.91,0.00036,31]
[356619074,1742845129914,-174.91,0.00036,31]
[356619075,1742845129942,-174.91,0.00036,31]
[356619076,1742845129972,-174.91,0.00036,31]
[356619077,1742845130000,-174.91,0.00036,31]
[356619078,1742845130028,-174.91,0.00036,31]
[356619079,1742845130055,-174.91,0.00036,31]
[356619080,1742845130083,-174.91,0.00036,31]
[356619081,1742845130111,-174.91,0.00036,31]
[356619082,1742845130137,-174.91,0.00036,31]
[356619083,1742845130164,-174.91,0.00036,31]
[356619084,1742845130190,-174.91,0.00036,31]
[356619085,1742845130217,-174.91,0.00036,31]
[356619086,1742845130244,-174.91,0.00036,31]
[356619087,1742845130270,-174.91,0.00036,31]
[356619088,1742845130297,-174.91,0.00036,31]
[356619089,1742845130328,-174.91,0.00036,31]
[356619090,1742845130364,-174.91,0.00036,31]
[356619091,1742845130394,-174.91,0.00036,31]
[356619092,1742845130423,-174.91,0.00036,31]
[356619093,1742845130450,-174.91,0.00036,31]
[356619094,1742845130478,-174.91,0.00036,31]
[356619095,1742845130506,-174.91,0.00036,31]
[356619096,1742845130530,-1300.0,0.00036058,60]
[356619097,1742845130555,-452.21,0.0003632,44]
[356619098,1742845130579,-1300.0,0.00036606,60]
[356619099,1742845130604,-1300.0,0.00037154,60]
[356619100,1742845130627,-1300.0,0.00037702,60]
[356619101,1742845130652,-597.14,0.00038,120]
[356619102,1742845130677,-2000.0,0.00038356,120]
[356619103,1742845130823,-174.91,0.000386,31]
[356619104,1742845130853,-174.91,0.000386,31]
[356619105,1742845130881,-174.91,0.000386,31]
[356619106,1742845130912,-174.91,0.000386,31]
[356619107,1742845130940,-174.91,0.000386,31]
[356619108,1742845130968,-174.91,0.000386,31]
[356619109,1742845130996,-174.91,0.000386,31]
[356619110,1742845131023,-174.91,0.000386,31]
[356619111,1742845131051,-174.91,0.000386,31]
[356619112,1742845131078,-174.91,0.000386,31]
[356619113,1742845131106,-174.91,0.000386,31]
[356619114,1742845131133,-174.91,0.000386,31]
[356619115,1742845131160,-174.91,0.000386,31]
[356619116,1742845131187,-174.91,0.000386,31]
[356619117,1742845131214,-174.91,0.000386,31]
[356619118,1742845131241,-174.91,0.000386,31]
[356619119,1742845131267,-174.91,0.000386,31]
[356619120,1742845131294,-174.91,0.000386,31]
[356619121,1742845131321,-174.91,0.000386,31]
[356619122,1742845131348,-174.91,0.000386,31]
[356619123,1742845131375,-174.91,0.000386,31]
[356619124,1742845131402,-174.91,0.000386,31]
[356619125,1742845131430,-174.91,0.000386,31]
[356619126,1742845131455,-174.91,0.000386,31]
[356619127,1742845131480,-2000.0,0.0003863,120]
[356619128,1742845131505,-1300.0,0.00038798,60]
[356619129,1742845131528,-1366410.83674599,0.000388,60]
[356619130,1742845131555,-2050.4718521,0.00038904,120]
[356619131,1742845131579,-150.0,0.00038962,30]
[356619132,1742845131603,-933.19633297,0.00038962,30]
[356619133,1742845131626,-159.30706863,0.00038962,30]
[356619134,1742845131657,-299.79542652,0.00038962,30]
[356619135,1742845131694,-150.0,0.00038962,30]
[356619136,1742845131734,-276.99493646,0.00038962,30]
[356619137,1742845131769,-464.3258542,0.00039,120]
[356619138,1742845131810,-1000.0,0.00039178,30]
[356619139,1742845131852,-1000.0,0.0003953,30]
[356619140,1742845131892,-194.56,0.000398,40]
[356619141,1742845131935,-1000.0,0.00039817,30]
[356619142,1742845131972,-21603.45984545,0.0003988,30]
[356619143,1742845132003,-1300.0,0.00039894,60]
[356619144,1742845132046,-412.93755922,0.00039974,31]
[356619145,1742845132078,-462.85835479,0.00039999,31]
[356619146,1742845132113,-167.48968592,0.00039999,31]
[356619147,1742845132150,-398.22090296,0.00039999,31]
[356619148,1742845132183,-170.77175101,0.00039999,31]
[356619149,1742845132218,-571.99387819,0.00039999,31]
[356619150,1742845132253,-50000.0,0.0004,40]
[356619151,1742845132286,-1000.0,0.0004,30]
[356619152,1742845132320,-1528.56,0.0004,120]
[356619153,1742845132353,-1000.0,0.0004,120]
[356619154,1742845132385,-460.13,0.0004,120]
[356619155,1742845132419,-6121.8593521,0.0004,120]
[356619156,1742845132451,-499.64,0.0004,120]
[356619157,1742845132482,-429.40315488,0.0004,30]
[356619158,1742845132517,-387.54990554,0.0004,120]
[356619159,1742845132550,-528.0,0.0004,120]
[356619160,1742845132584,-1000.0,0.00040457,30]
[356619161,1742845132616,-5034.57013,0.00040723,30]
[356619162,1742845132647,-1300.0,0.0004099,60]
[356619163,1742845132683,-50000.0,0.00041,41]
[356619164,1742845132852,-2197.0,0.00041,120]
[356619165,1742845132888,-4090.0,0.00041,117]
[356619166,1742845132912,-2558.17340645,0.00041046,30]
[356619167,1742845132936,-150.0,0.00041095,120]
[356619168,1742845132962,-1521.16697976,0.00041096,30]
[356619169,1742845132987,-500.0,0.00041096,31]
[356619170,1742845133012,-500.0,0.00041096,31]
[356619171,1742845133036,-500.0,0.00041096,31]
[356619172,1742845133061,-500.0,0.00041096,31]
[356619173,1742845133085,-500.0,0.00041096,31]
[356619174,1742845133108,-500.0,0.00041096,31]
[356619175,1742845133133,-500.0,0.00041096,31]
[356619176,1742845133156,-500.0,0.00041096,31]
[356619177,1742845133180,-500.0,0.00041096,31]
[356619178,1742845133203,-500.0,0.00041096,31]
[356619179,1742845133227,-500.0,0.00041096,31]
[356619180,1742845133251,-500.0,0.00041096,31]
[356619181,1742845133282,-500.0,0.00041096,31]
[356619182,1742845133313,-500.0,0.00041096,31]
[356619183,1742845133342,-500.0,0.00041096,31]
[356619184,1742845133368,-500.0,0.00041096,31]
[356619185,1742845133394,-500.0,0.00041096,31]
[356619186,1742845133420,-500.0,0.00041096,31]
[356619187,1742845133445,-500.0,0.00041096,31]
[356619188,1742845133471,-500.0,0.00041096,31]
[356619189,1742845133497,-500.0,0.00041096,31]
[356619190,1742845133523,-500.0,0.00041096,31]
[356619191,1742845133547,-500.0,0.00041096,31]
[356619192,1742845133572,-500.0,0.00041096,31]
[356619193,1742845133598,-500.0,0.00041096,31]
[356619194,1742845133623,-500.0,0.00041096,31]
[356619195,1742845133648,-402.8922,0.00041096,31]
[356619196,1742845133673,-500.0,0.00041096,31]
[356619197,1742845133698,-500.0,0.00041096,31]
[356619198,1742845133723,-500.0,0.00041096,31]
[356619199,1742845133748,-500.0,0.00041096,31]
[356619200,1742845133773,-500.0,0.00041096,31]
[356619201,1742845133798,-500.0,0.00041096,31]
[356619202,1742845133824,-500.0,0.00041096,31]
[356619203,1742845133849,-500.0,0.00041096,31]
[356619204,1742845133874,-500.0,0.00041096,31]
[356619205,1742845133899,-500.0,0.00041096,31]
[356619206,1742845133924,-500.0,0.00041096,31]
[356619207,1742845133949,-500.0,0.00041096,31]
[356619208,1742845133975,-500.0,0.00041096,31]
[356619209,1742845134000,-500.0,0.00041096,31]
[356619210,1742845134026,-500.0,0.00041096,31]
[356619211,1742845134050,-500.0,0.00041096,31]
[356619212,1742845134074,-500.0,0.00041096,31]
[356619213,1742845134097,-500.0,0.00041096,31]
[356619214,1742845134122,-500.0,0.00041096,31]
[356619215,1742845134147,-500.0,0.00041096,31]
[356619216,1742845134171,-618.42682,0.00041096,31]
[356619217,1742845134194,-500.0,0.00041096,31]
[356619218,1742845134218,-500.0,0.00041096,31]
[356619219,1742845134242,-500.0,0.00041096,31]
[356619220,1742845134265,-500.0,0.00041096,31]
[356619221,1742845134289,-500.0,0.00041096,31]
[356619222,1742845134313,-500.0,0.00041096,31]
[356619223,1742845134339,-457.60298,0.00041096,31]
[356619224,1742845134365,-500.0,0.00041096,31]
[356619225,1742845134389,-500.0,0.00041096,31]
[356619226,1742845134415,-500.0,0.00041096,31]
[356619227,1742845134439,-500.0,0.00041096,31]
[356619228,1742845134462,-500.0,0.00041096,31]
[356619229,1742845134492,-174.91,0.000411,31]
[356619230,1742845134519,-174.91,0.000411,31]
[356619231,1742845134546,-174.91,0.000411,31]
[356619232,1742845134573,-174.91,0.000411,31]
[356619233,1742845134600,-174.91,0.000411,31]
[356619234,1742845134627,-174.91,0.000411,31]
[356619235,1742845134654,-174.91,0.000411,31]
[356619236,1742845134681,-174.91,0.000411,31]
[356619237,1742845134708,-174.91,0.000411,31]
[356619238,1742845134736,-174.91,0.000411,31]
[356619239,1742845134763,-174.91,0.000411,31]
[356619240,1742845134793,-174.91,0.000411,31]
[356619241,1742845134821,-174.91,0.000411,31]
[356619242,1742845134849,-174.91,0.000411,31]
[356619243,1742845134995,-174.91,0.000411,31]
[356619244,1742845135026,-174.91,0.000411,31]
[356619245,1742845135055,-174.91,0.000411,31]
[356619246,1742845135084,-174.91,0.000411,31]
[356619247,1742845135112,-174.91,0.000411,31]
[356619248,1742845135141,-174.91,0.000411,31]
[356619249,1742845135169,-174.91,0.000411,31]
[356619250,1742845135196,-174.91,0.000411,31]
[356619251,1742845135223,-174.91,0.000411,31]
[356619252,1742845135251,-174.91,0.000411,31]
[356619253,1742845135275,-157.75,0.00041132,120]
[356619254,1742845135301,-150.0,0.00041396,120]
[356619255,1742845135329,-9195.65416887,0.000418,120]
[356619256,1742845135357,-50000.0,0.00042,42]
[356619257,1742845135382,-4477.29457542,0.00042,120]
[356619258,1742845135406,-301.0,0.00042,120]
[356619259,1742845135430,-227.23894581,0.00042,120]
[356619260,1742845135453,-235.0,0.00042,120]
[356619261,1742845135477,-3046.06734026,0.00042,120]
[356619262,1742845135500,-2511.17657286,0.00042,120]
[356619263,1742845135525,-680.41,0.00042,120]
[356619264,1742845135548,-261.74,0.00042,120]
[356619265,1742845135573,-250.91,0.00042,120]
[356619266,1742845135598,-10704.46,0.00042,120]
[356619267,1742845135622,-3008.93,0.00042,120]
[356619268,1742845135646,-2780.62,0.00042,120]
[356619269,1742845135670,-4281.45,0.00042,120]
[356619270,1742845135694,-1300.0,0.00042086,60]
[356619271,1742845135718,-202.961767,0.000423,120]
[356619272,1742845135742,-170.6601659,0.0004242,30]
[356619273,1742845135767,-43362.33664096,0.0004242,30]
[356619274,1742845135792,-50000.0,0.0004242,30]
[356619275,1742845135815,-50000.0,0.0004242,30]
[356619276,1742845135838,-50000.0,0.0004242,30]
[356619277,1742845135862,-1999.0,0.0004242,30]
[356619278,1742845135886,-153.2660527,0.00042465,120]
[356619279,1742845135910,-2545.46245678,0.000428,60]
[356619280,1742845135934,-500001.0,0.000428,120]
[356619281,1742845135960,-50000.0,0.00043,43]
[356619282,1742845135985,-1000.0,0.00043,120]
[356619283,1742845136009,-7000.0,0.00043,120]
[356619284,1742845136033,-1708.37031565,0.00043,30]
[356619285,1742845136056,-2827.20713659,0.00043,120]
[356619286,1742845136080,-1070.26684222,0.0004305,30]
[356619287,1742845136103,-1300.0,0.00043182,60]
[356619288,1742845136131,-174.91,0.000436,36]
[356619289,1742845136159,-174.91,0.000436,36]
[356619290,1742845136186,-174.91,0.000436,36]
[356619291,1742845136212,-174.91,0.000436,36]
[356619292,1742845136240,-174.91,0.000436,36]
[356619293,1742845136268,-174.91,0.000436,36]
[356619294,1742845136295,-174.91,0.000436,36]
[356619295,1742845136323,-174.91,0.000436,36]
[356619296,1742845136352,-174.91,0.000436,36]
[356619297,1742845136380,-174.91,0.000436,36]
[356619298,1742845136408,-174.91,0.000436,36]
[356619299,1742845136435,-174.91,0.000436,36]
[356619300,1742845136462,-174.91,0.000436,36]
[356619301,1742845136491,-174.91,0.000436,36]
[356619302,1742845136517,-174.91,0.000436,36]
[356619303,1742845136543,-174.91,0.000436,36]
[356619304,1742845136566,-1283.5628391,0.000437,120]
[356619305,1742845136589,-700.0,0.00043835,120]
[356619306,1742845136613,-700.0,0.00043835,120]
[356619307,1742845136637,-700.0,0.00043835,120]
[356619308,1742845136661,-700.0,0.00043835,120]
[356619309,1742845136684,-700.0,0.00043835,120]
[356619310,1742845136708,-700.0,0.00043835,120]
[356619311,1742845136731,-700.0,0.00043835,120]
[356619312,1742845136755,-700.0,0.00043835,120]
[356619313,1742845136778,-700.0,0.00043835,120]
[356619314,1742845136801,-700.0,0.00043835,120]
[356619315,1742845136824,-700.0,0.00043835,120]
[356619316,1742845136847,-700.0,0.00043835,120]
[356619317,1742845136871,-700.0,0.00043835,120]
[356619318,1742845136895,-700.0,0.00043835,120]
[356619319,1742845136918,-700.0,0.00043835,120]
[356619320,1742845136942,-700.0,0.00043835,120]
[356619321,1742845136967,-700.0,0.00043835,120]
[356619322,1742845136991,-700.0,0.00043835,120]
[356619323,1742845137015,-700.0,0.00043835,120]
[356619324,1742845137039,-700.0,0.00043835,120]
[356619325,1742845137063,-467.87575267,0.00043835,120]
[356619326,1742845137188,-1000.0,0.00043835,120]
[356619327,1742845137214,-971.20194995,0.00043863,120]
[356619328,1742845137240,-50000.0,0.00044,44]
[356619329,1742845137264,-500.0,0.00044,30]
[356619330,1742845137287,-1000.0,0.00044,120]
[356619331,1742845137310,-569.80285492,0.00044,30]
[356619332,1742845137336,-2447.24800315,0.00044,120]
[356619333,1742845137359,-167.12615439,0.00044,120]
[356619334,1742845137383,-3330.97115817,0.00044,30]
[356619335,1742845137406,-682.1385985,0.00044,60]
[356619336,1742845137429,-3093.78322662,0.00044,30]
[356619337,1742845137452,-199.0971681,0.00044,120]
[356619338,1742845137476,-150.0,0.00044,57]
[356619339,1742845137500,-1300.0,0.00044278,120]
[356619340,1742845137525,-4090.59195609,0.0004438,120]
[356619341,1742845137549,-55468.0,0.00044384,120]
[356619342,1742845137573,-1000000.0,0.000444,120]
[356619343,1742845137598,-1300.0,0.00044826,120]
[356619344,1742845137633,-5150.0,0.0004488,33]
[356619345,1742845137667,-244.3973637,0.000449,30]
[356619346,1742845137692,-177.36640909,0.000449,120]
[356619347,1742845137716,-177.36640906,0.000449,120]
[356619348,1742845137742,-177.36640906,0.000449,120]
[356619349,1742845137766,-177.36640906,0.000449,120]
[356619350,1742845137793,-50000.0,0.00045,45]
[356619351,1742845137817,-369.90731252,0.00045,120]
[356619352,1742845137841,-41500.0,0.00045,120]
[356619353,1742845137868,-25000.0,0.00045,120]
[356619354,1742845137893,-584.7254622,0.00045,60]
[356619355,1742845137917,-458.44515823,0.00045,90]
[356619356,1742845137944,-1426.06352537,0.00045,120]
[356619357,1742845137969,-212.25,0.0004521,120]
[356619358,1742845137994,-1300.0,0.00045374,120]
[356619359,1742845138019,-1000000.0,0.000454,120]
[356619360,1742845138043,-3244.1711542,0.000459,120]
[356619361,1742845138069,-6499.75557331,0.000459,120]
[356619362,1742845138094,-864.71824571,0.00045922,120]
[356619363,1742845138120,-50000.0,0.00046,46]
[356619364,1742845138146,-200.0,0.00046,120]
[356619365,1742845138172,-1000.0,0.00046,120]
[356619366,1742845138197,-5018.75180591,0.00046,120]
[356619367,1742845138221,-830430.18793298,0.00046,120]
[356619368,1742845138245,-1358.0,0.00046028,30]
[356619369,1742845138268,-46991.07,0.000461,120]
[356619370,1742845138294,-1000000.0,0.000464,120]
[356619371,1742845138317,-1358.0,0.00046503,30]
[356619372,1742845138345,-387.41386062,0.00046575,120]
[356619373,1742845138369,-502.57103113,0.00046575,120]
[356619374,1742845138394,-500.0,0.00046575,120]
[356619375,1742845138419,-501.51709933,0.00046575,120]
[356619376,1742845138442,-500.0,0.00046575,120]
[356619377,1742845138465,-500.0,0.00046575,120]
[356619378,1742845138490,-383.906034,0.00046575,120]
[356619379,1742845138512,-163.843247,0.00046575,120]
[356619380,1742845138535,-446.41846,0.00046575,120]
[356619381,1742845138558,-500.0,0.00046575,120]
[356619382,1742845138582,-500.0,0.00046575,120]
[356619383,1742845138605,-506.58253736,0.00046575,120]
[356619384,1742845138627,-501.53229892,0.00046575,120]
[356619385,1742845138651,-385.28853829,0.00046575,120]
[356619386,1742845138676,-506.50247357,0.00046575,120]
[356619387,1742845138700,-525.62384063,0.00046575,120]
[356619388,1742845138725,-500.0,0.00046575,120]
[356619389,1742845138749,-504.44731707,0.00046575,120]
[356619390,1742845138772,-506.65466098,0.00046575,120]
[356619391,1742845138795,-504.27906633,0.00046575,120]
[356619392,1742845138818,-503.46852054,0.00046575,120]
[356619393,1742845138841,-500.0,0.00046575,120]
[356619394,1742845138865,-500.0,0.00046575,120]
[356619395,1742845138888,-500.0,0.00046575,120]
[356619396,1742845138911,-502.25903971,0.00046575,120]
[356619397,1742845138934,-500.0,0.00046575,120]
[356619398,1742845138958,-512.94523101,0.00046575,120]
[356619399,1742845138982,-505.23024121,0.00046575,120]
[356619400,1742845139005,-505.42756099,0.00046575,120]
[356619401,1742845139030,-506.07185682,0.00046575,120]
[356619402,1742845139054,-505.3544525,0.00046575,120]
[356619403,1742845139078,-504.43613208,0.00046575,120]
[356619404,1742845139101,-500.0,0.00046575,120]
[356619405,1742845139126,-500.0,0.00046575,120]
[356619406,1742845139254,-500.0,0.00046575,120]
[356619407,1742845139278,-500.0,0.00046575,120]
[356619408,1742845139302,-500.0,0.00046575,120]
[356619409,1742845139328,-506.94410947,0.00046575,120]
[356619410,1742845139353,-500.0,0.00046575,120]
[356619411,1742845139379,-500.0,0.00046575,120]
[356619412,1742845139405,-500.0,0.00046575,120]
[356619413,1742845139429,-569.61951699,0.00046575,120]
[356619414,1742845139454,-506.96642365,0.00046575,120]
[356619415,1742845139478,-534.74077665,0.00046575,120]
[356619416,1742845139502,-505.94738525,0.00046575,120]
[356619417,1742845139527,-500.0,0.00046575,120]
[356619418,1742845139552,-503.23971162,0.00046575,120]
[356619419,1742845139577,-505.82147242,0.00046575,120]
[356619420,1742845139600,-500.0,0.00046575,120]
[356619421,1742845139624,-505.34706018,0.00046575,120]
[356619422,1742845139649,-500.0,0.00046575,120]
[356619423,1742845139672,-500.0,0.00046575,120]
[356619424,1742845139696,-500.0,0.00046575,120]
[356619425,1742845139720,-500.0,0.00046575,120]
[356619426,1742845139745,-503.24857408,0.00046575,120]
[356619427,1742845139769,-500.0,0.00046575,120]
[356619428,1742845139793,-501.31022497,0.00046575,120]
[356619429,1742845139818,-500.0,0.00046575,120]
[356619430,1742845139843,-500.0,0.00046575,120]
[356619431,1742845139867,-512.3371407,0.00046575,120]
[356619432,1742845139892,-500.0,0.00046575,120]
[356619433,1742845139917,-539.16118021,0.00046575,120]
[356619434,1742845139943,-500.0,0.00046575,120]
[356619435,1742845139968,-504.39199647,0.00046575,120]
[356619436,1742845139992,-524.50207369,0.00046575,120]
[356619437,1742845140018,-529.611145,0.00046575,120]
[356619438,1742845140044,-500.0,0.00046575,120]
[356619439,1742845140069,-153.96060523,0.00046575,120]
[356619440,1742845140093,-502.30088789,0.00046575,120]
[356619441,1742845140118,-504.50038998,0.00046575,120]
[356619442,1742845140142,-500.0,0.00046575,120]
[356619443,1742845140166,-517.83757117,0.00046575,120]
[356619444,1742845140191,-500.0,0.00046575,120]
[356619445,1742845140217,-502.38424208,0.00046575,120]
[356619446,1742845140243,-500.0,0.00046575,120]
[356619447,1742845140269,-500.0,0.00046575,120]
[356619448,1742845140295,-500.0,0.00046575,120]
[356619449,1742845140319,-500.0,0.00046575,120]
[356619450,1742845140349,-500.0,0.00046575,120]
[356619451,1742845140372,-500.0,0.00046575,120]
[356619452,1742845140396,-502.36530326,0.00046575,120]
[356619453,1742845140420,-501.48661286,0.00046575,120]
[356619454,1742845140444,-558.74349733,0.00046575,120]
[356619455,1742845140467,-500.0,0.00046575,120]
[356619456,1742845140493,-500.0,0.00046575,120]
[356619457,1742845140517,-501.67553298,0.00046575,120]
[356619458,1742845140541,-528.18795691,0.00046575,120]
[356619459,1742845140564,-501.94087669,0.00046575,120]
[356619460,1742845140589,-500.0,0.00046575,120]
[356619461,1742845140612,-501.59553576,0.00046575,120]
[356619462,1742845140639,-504.76255881,0.00046575,120]
[356619463,1742845140663,-525.01886778,0.00046575,120]
[356619464,1742845140688,-488.47667537,0.00046575,120]
[356619465,1742845140713,-500.0,0.00046575,120]
[356619466,1742845140739,-500.0,0.00046575,120]
[356619467,1742845140763,-504.26103587,0.00046575,120]
[356619468,1742845140788,-500.0,0.00046575,120]
[356619469,1742845140813,-500.0,0.00046575,120]